Cogmind - Beta 12 @@@ ROGUE MODE // 2023.03.08 @ 22:09:41 Player: RBrandon Result: Destroyed by G-47 Trooper with Particle Gun Performance ------------- Evolutions (2) 1000 Regions Visited (6) 1200 Robots Destroyed (47) 235 Value Destroyed (2567) 2567 Prototype IDs (0) 0 Alien Tech Used (0) 0 Bonus (1837) 1837 TOTAL SCORE: 6839 Bonus ------- High Alert Combat Kills 240 Follower Combat Kills 197 Entered Garrisons 400 Used RIF Installer 1000 Cogmind --------- Core Integrity 0/550 Matter 242/300 Energy 100/100 System Corruption 4% Temperature Cool (18) Movement Core (100) Ox1 Location -8/Garrison Parts ------- > --- POWER (1) -------- (None) > --- PROPULSION (3) --- (None) > --- UTILITY (5) ------ Relay Coupler [NC] (40) Relay Coupler [NC] (15) Relay Coupler [Grunt] (21) Relay Coupler [Sentry] (9) Relay Coupler [Demolisher] (23) > --- WEAPON (2) ------- Improved Datajack Great Maul > --- INVENTORY (5) ---- Authchip [R/Combat] Relay Coupler [Cutter] (36) Relay Coupler [Sentry] (18) Relay Coupler [Sentry] (22) Relay Coupler [Hunter] (13) Peak State ------------ > --- POWER ------------ Backup Power III > --- PROPULSION ------- Backup Propulsion III Backup Propulsion III Backup Propulsion III > --- UTILITY ---------- Relay Coupler [NC] Relay Coupler [NC] Relay Coupler [Grunt] Relay Coupler [Sentry] Relay Coupler [Demolisher] > --- WEAPON ----------- Shock Rifle Improved Datajack > --- INVENTORY -------- Authchip [R/Combat] Relay Coupler [Cutter] Relay Coupler [Sentry] Heavy Laser Great Maul [Rating: 33] Favorites ----------- Power Ion Engine Engine Ion Engine Power Core Light Nuclear Core Propulsion Aluminum Leg Leg Aluminum Leg Hover Unit Backup Propulsion III Utility Small Storage Unit Device Heat Sink Storage Small Storage Unit Hackware Relay Coupler [NC] Protection Light Armor Plating Weapon Scythe Energy Gun Spread Laser Ballistic Gun Light Assault Rifle Launcher Improved Grenade Launcher Impact Weapon Great Maul Slashing Weapon Scythe Special Melee Weapon Improved Datajack Build | -11 -10 -9 -8 -8 -8 -8 ------- Run | Jun Mat Mat Mat Gar Mat Gar Slots Evolved 4 | . . 2 2 . . . Power . | . . . . . . . Propulsion 1 | . . 1 . . . . Utility 3 | . . 1 2 . . . Weapon . | . . . . . . . Parts Attached 67 | 7 1 14 9 29 5 2 Power 8 | 1 . 2 1 3 1 . Engine 6 | 1 . 2 1 1 1 . Core 2 | . . . . 2 . . Reactor . | . . . . . . . Propulsion 22 | 2 . 6 2 8 3 1 Treads . | . . . . . . . Leg 18 | 2 . 6 2 8 . . Wheel . | . . . . . . . Hover 4 | . . . . . 3 1 Flight . | . . . . . . . Utility 22 | 2 1 3 5 11 . . Device 9 | 1 1 1 4 2 . . Storage 1 | 1 . . . . . . Processor . | . . . . . . . Hackware 8 | . . . . 8 . . Protection 4 | . . 2 1 1 . . Artifact . | . . . . . . . Weapon 15 | 2 . 3 1 7 1 1 Energy Gun 6 | 1 . 2 . 3 . . Energy Cannon . | . . . . . . . Ballistic Gun 2 | 1 . 1 . . . . Ballistic Cannon . | . . . . . . . Launcher 2 | . . . . 2 . . Special Weapon . | . . . . . . . Impact Weapon 1 | . . . . . . 1 Slashing Weapon 1 | . . . 1 . . . Piercing Weapon . | . . . . . . . Special Melee Weapon 3 | . . . . 2 1 . Unidentified Prototypes . | . . . . . . . Parts Lost 23 | . 1 . 3 13 1 5 Power 3 | . . . . 2 . 1 Propulsion 7 | . . . . 3 . 4 Utility 9 | . 1 . 2 6 . . Weapon 4 | . . . 1 2 1 . Highest Loss Streak 7 | . 1 . 1 7 1 3 To Critical Strikes . | . . . . . . . Average Slot Usage (%) 90 | . 93 96 89 91 91 72 Engine 5 | . 14 11 9 . 3 . Core 2 | . . . . 6 . . Leg 24 | . 28 30 27 25 18 . Hover 1 | . . . . . 8 10 Device 12 | . 7 11 21 16 . . Storage 7 | . 14 11 9 7 . . Hackware 13 | . . . . 15 45 45 Protection 3 | . . 10 5 1 . . Energy Gun 7 | . 14 12 9 3 8 . Ballistic Gun 3 | . 14 9 . . . . Slashing Weapon 4 | . . . 7 7 . . Special Melee Weapon 3 | . . . . 4 7 9 Naked Turns . | . . . . . . . Heaviest Build 28 | 14 14 20 28 28 7 5 Greatest Support 30 | 20 20 30 30 30 30 24 Greatest Overweight (x) 1 | 1 . . . 1 . 1 Average Overweight (x) . | . . . . . . . Largest Inventory Capacity 8 | 8 8 8 8 8 5 5 Average Capacity 7 | 7 8 8 8 7 5 5 Most Carried 8 | 3 4 8 8 8 5 5 Average Carried 6 | . 3 7 7 7 4 4 Final Capacity 8 | 8 8 8 8 5 5 5 Final Carried 8 | 3 4 8 8 5 5 5 Class Distribution -------------------- 56% | Scavenger-Mutant 27% | Bothacker-Mutant 15% | Mutant Dominant Class ---------------- Mutant | -10/Materials Scavenger-Mutant | -9/Materials Scavenger-Mutant | -8/Materials Scavenger-Mutant | -8/Garrison Bothacker-Mutant | -8/Materials Bothacker-Mutant | -8/Garrison Resources | -11 -10 -9 -8 -8 -8 -8 ----------- Run | Jun Mat Mat Mat Gar Mat Gar Matter Collected 984 | 270 22 269 81 290 . 52 Remotely . | . . . . . . . Salvage Created 1896 | 104 184 617 514 477 . . Parts 123 | 3 9 45 36 30 . . Haulers Intercepted . | . . . . . . . Recyclers Shooed 1 | . 1 . . . . . Parts Field Recycled . | . . . . . . . Retrieved Matter . | . . . . . . . Parts Self-Destructed . | . . . . . . . Prevented . | . . . . . . . Kills | -11 -10 -9 -8 -8 -8 -8 ------- Run | Jun Mat Mat Mat Gar Mat Gar Combat Hostiles Destroyed 41 | . 4 13 11 13 . . Melee 15 | . . . 9 6 . . Guns 20 | . 4 13 2 1 . . AOE 6 | . . . . 6 . . Classes Destroyed 10 | 2 1 3 1 3 . . Worker 1 | . . 1 . . . . Tunneler 1 | 1 . . . . . . Recycler 2 | 1 . . 1 . . . Operator 1 | . . 1 . . . . Watcher 1 | . . . . 1 . . Swarmer 4 | . . . 3 1 . . Grunt 23 | . 4 9 5 5 . . Sentry 10 | . . 4 3 3 . . Hunter 1 | . . . . 1 . . Programmer 3 | . . . . 3 . . Best Kill Streak 4 | 2 2 4 4 4 . . Combat Bots Only 4 | . 2 3 3 4 . . Max Kills in Single Turn 2 | 1 1 2 1 2 . . Gunslinging 1 | . . 1 . . . . Exploded 2 | . . . . 2 . . Melee 1 | . . . 1 1 . . Uniques/NPCs Destroyed . | . . . . . . . Combat | -11 -10 -9 -8 -8 -8 -8 -------- Run | Jun Mat Mat Mat Gar Mat Gar Damage Taken 3008 | . 206 686 657 1175 46 238 Core 721 | . 39 128 121 309 . 124 Absorbed by Shields 16 | . . . 4 12 . . Core Remaining (%) 84 | 100 84 68 . . . . Volleys Fired 97 | 4 16 55 7 15 . . Largest 2 | 1 2 2 1 1 . . Hottest 121 | 50 70 121 65 69 . . Shots Fired 169 | 4 32 110 7 15 1 . Gun 163 | 4 32 110 7 9 1 . Cannon . | . . . . . . . Launcher 6 | . . . . 6 . . Special . | . . . . . . . Kinetic 89 | . 16 73 . . . . Thermal 69 | 4 16 37 7 5 . . Explosive 6 | . . . . 6 . . Electromagnetic 5 | . . . . 4 1 . Robot Hit Streak 9 | 4 8 9 2 3 2 . Robot Miss Streak 6 | . 3 6 4 1 . . Penetration Max . | . . . . . . . Secondary Targets 4 | . 1 3 . . . . Max Gunslinging Chain 1 | . 1 1 . . . . Shots Hit Robots 176 | 4 22 70 27 46 4 3 Core Hits 87 | 3 10 39 16 19 . . Critical Kills . | . . . . . . . Critical Parts Destroyed 1 | . . 1 . . . . Critical Strikes 6 | 2 . 2 1 1 . . Burn 3 | 2 . 1 . . . . Destroy 1 | . . 1 . . . . Sever 2 | . . . 1 1 . . Melee Attacks 107 | . . . 33 61 3 10 Impact 7 | . . . . . . 7 Slashing 64 | . . . 33 31 . . Piercing . | . . . . . . . Sneak Attacks 18 | . . . 2 13 2 1 Combat Hostiles 6 | . . . . 5 . 1 Follow-up Attacks . | . . . . . . . Damage Inflicted 3326 | 50 244 802 732 1436 14 48 Guns 1191 | 50 232 799 48 48 14 . Cannons . | . . . . . . . Explosions 730 | . . . . 730 . . Melee 1390 | . . . 684 658 . 48 Ramming 15 | . 12 3 . . . . Kinetic 545 | . 93 452 . . . . Thermal 632 | 50 139 347 48 48 . . Explosive 730 | . . . . 730 . . Electromagnetic 14 | . . . . . 14 . Impact 48 | . . . . . . 48 Slashing 1342 | . . . 684 658 . . Piercing . | . . . . . . . Highest Corruption 4 | . . 1 . 4 4 4 Average Corruption 3 | . . 1 . 3 4 4 Corruption Purged . | . . . . . . . Corruption Blocked . | . . . . . . . Effects 16 | . . 1 . 3 6 6 Message Errors 6 | . . 1 . . 1 4 Matter Fused 4 | . . . . 2 . 2 Heat Flow Errors 2 | . . . . . 2 . Energy Discharges 1 | . . . . 1 . . Data Loss (minor) 2 | . . . . . 2 . Misfires 1 | . . . . . 1 . Overload Shots . | . . . . . . . Overflow Damage 55 | . . . . 55 . . Projectiles . | . . . . . . . Explosions 9 | . . . . 9 . . Melee 46 | . . . . 46 . . Knockbacks . | . . . . . . . Impact . | . . . . . . . Kinetic . | . . . . . . . Secondary . | . . . . . . . Self-Inflicted Damage 61 | . . . . 61 . . Shots 3 | . . . . 3 . . Rammed . | . . . . . . . Targets Rammed 4 | . 3 1 . . . . Kicked 4 | . 3 1 . . . . Crushed . | . . . . . . . Highest Temperature 250 | 30 164 228 18 18 250 . Average Temperature 59 | 14 73 51 10 9 115 . Received Heat Transfer 997 | . 93 357 240 262 18 27 Effects 1 | . . 1 . . . . Interference 1 | . . 1 . . . . Siege Activations . | . . . . . . . Robots Corrupted . | . . . . . . . Combat Hostiles . | . . . . . . . Parts Fried . | . . . . . . . Impact Corruptions . | . . . . . . . Robots Melted . | . . . . . . . Combat Hostiles . | . . . . . . . Parts Melted 5 | . 1 3 . 1 . . Heat Transferred 1643 | 296 407 806 60 74 . . Parts Sabotaged . | . . . . . . . Parts Stolen . | . . . . . . . Parts Stripped . | . . . . . . . Power Chain Reactions . | . . . . . . . Missiles Intercepted . | . . . . . . . Alert | -11 -10 -9 -8 -8 -8 -8 ------- Run | Jun Mat Mat Mat Gar Mat Gar Peak Influence 1020 | 10 132 409 507 1020 523 580 Initial 497 | . 6 55 117 329 497 339 Average 436 | 3 74 281 295 667 504 447 Maximum Alert Level 3 | . . 2 2 3 2 2 Low Security (%) 17 | 100 100 19 15 . . . Level 1 30 | . . 68 62 14 . 22 Level 2 34 | . . 11 21 40 100 77 Level 3 17 | . . . . 44 . . Level 4 . | . . . . . . . Level 5 . | . . . . . . . High Security . | . . . . . . . Max Security . | . . . . . . . Squads Dispatched 6 | . 1 3 2 . . . Investigation 1 | . . 1 . . . . Extermination . | . . . . . . . Reinforcement 4 | . 1 2 1 . . . Assault . | . . . . . . . Garrison 1 | . . . 1 . . . Intercept . | . . . . . . . Searches Triggered . | . . . . . . . Construction Impeded . | . . . . . . . Haulers Reinforced . | . . . . . . . Active Scanning Responses . | . . . . . . . Cargo Convoy Interrupts . | . . . . . . . Stealth | -11 -10 -9 -8 -8 -8 -8 --------- Run | Jun Mat Mat Mat Gar Mat Gar Distress Signals 2 | . . . 1 1 . . Communications Jammed . | . . . . . . . Distress Signals . | . . . . . . . Times Spotted 85 | . 7 17 20 29 3 9 Peak Tracking Total 7 | . 3 4 7 7 1 3 Tactical Retreats 5 | . . . 2 3 . . Traps | -11 -10 -9 -8 -8 -8 -8 ------- Run | Jun Mat Mat Mat Gar Mat Gar Traps Triggered 3 | . 1 . . 1 . 1 Indirectly . | . . . . . . . Trap Hack Attempts . | . . . . . . . Triggered . | . . . . . . . Disarmed . | . . . . . . . Reprogrammed . | . . . . . . . Reused . | . . . . . . . Traps Extracted . | . . . . . . . Installed . | . . . . . . . Triggered . | . . . . . . . Machines | -11 -10 -9 -8 -8 -8 -8 ---------- Run | Jun Mat Mat Mat Gar Mat Gar Machines Disabled 8 | . . . . 3 . 5 Max in Single Turn 1 | . . . . 1 . 1 Garrison Relay 4 | . . . . 3 . 1 Machines Repaired . | . . . . . . . Machines Sabotaged . | . . . . . . . Overloaded Fab Kills . | . . . . . . . Hacking | -11 -10 -9 -8 -8 -8 -8 --------- Run | Jun Mat Mat Mat Gar Mat Gar Machines Accessed 16 | . 2 3 2 4 3 2 Terminals 13 | . 2 3 1 4 1 2 Fabricators . | . . . . . . . Repair Stations 1 | . . . . . 1 . Recycling Units . | . . . . . . . Scanalyzers . | . . . . . . . Garrison Access 2 | . . . 1 . 1 . Total Hacks 45 | . 5 8 5 12 10 5 Successful 17 | . 4 2 3 3 4 1 Failed 28 | . 1 6 2 9 6 4 Catastrophic 5 | . . . 1 1 2 1 Database Lockouts . | . . . . . . . Manual 14 | . 3 5 1 3 1 1 Terminals 39 | . 5 8 4 12 5 5 Fabricators . | . . . . . . . Repair Stations 3 | . . . . . 3 . Recycling Units . | . . . . . . . Scanalyzers . | . . . . . . . Garrison Access 3 | . . . 1 . 2 . Terminal Hacks 10 | . 2 . 2 3 2 1 Record 1 | . 1 . . . . . Open Door 1 | . . . . 1 . . Emergency Access Points 1 | . . . . 1 . . Recycling Unit Index 1 | . . . . . 1 . Alert Level 1 | . . . 1 . . . Dispatch Records 1 | . . . 1 . . . Zone Layout 2 | . 1 . . . 1 . Patrol Navigation 2 | . . . . 1 . 1 Fabricator Hacks . | . . . . . . . Repair Station Hacks . | . . . . . . . Recycling Unit Hacks . | . . . . . . . Scanalyzer . | . . . . . . . Garrison Access Hacks 3 | . . . 1 . 2 . Unlock Access 2 | . . . 1 . 1 . Coupler Status 1 | . . . . . 1 . Unauthorized Hacks 4 | . 2 2 . . . . Terminals 4 | . 2 2 . . . . Track 1 | . . 1 . . . . Botnet 1 | . . 1 . . . . Detonate 1 | . 1 . . . . . Operators 1 | . 1 . . . . . Fabricators . | . . . . . . . Repair Stations . | . . . . . . . Recycling Units . | . . . . . . . Scanalyzers . | . . . . . . . Garrison Access . | . . . . . . . Data Cores Recovered . | . . . . . . . Used . | . . . . . . . Hacking Detections 15 | . 1 3 2 4 3 2 Full Trace Events 3 | . . 1 . 1 . 1 Feedback Events 1 | . . 1 . . . . Corruption 1 | . . 1 . . . . Feedback Blocked . | . . . . . . . Robot Schematics Acquired . | . . . . . . . Robots Built . | . . . . . . . Authchips . | . . . . . . . Time . | . . . . . . . Total Robot Build Rating . | . . . . . . . Part Schematics Acquired . | . . . . . . . Parts Built . | . . . . . . . Authchips . | . . . . . . . Time . | . . . . . . . Total Part Build Rating . | . . . . . . . Parts Repaired . | . . . . . . . Time . | . . . . . . . Parts Recycled . | . . . . . . . Recycled Matter . | . . . . . . . Retrieved Matter . | . . . . . . . Retrieved Components . | . . . . . . . Parts Scanalyzed . | . . . . . . . Part Schematics Acquired . | . . . . . . . Parts Damaged . | . . . . . . . Bothacking | -11 -10 -9 -8 -8 -8 -8 ------------ Run | Jun Mat Mat Mat Gar Mat Gar Used RIF Installer 2 | . . . . 2 . . Watcher Feeds 1 | . . . . 1 . . Robots Hacked 12 | . . . . 7 3 2 Non-combat 3 | . . . . 1 2 . Combat 9 | . . . . 6 1 2 Robot Hacks Applied 15 | . . . . 10 3 2 generate_echo 1 | . . . . . 1 . release_backups 1 | . . . . . 1 . mark_security 1 | . . . . 1 . . relay_feed 1 | . . . . 1 . . find_shortcuts 1 | . . . . 1 . . reboot_system 2 | . . . . 2 . . go_dormant 1 | . . . . 1 . . streamctrl_high 3 | . . . . 1 . 2 formatsys_high 4 | . . . . 3 1 . Relay Couplers Released 14 | . . . . 11 . 3 Machine Destruction 14 | . . . . 11 . 3 Attached 8 | . . . . 8 . . Fabnet Peak Effective % . | . . . . . . . Robots Rewired 3 | . . . . 3 . . Allies Hacked . | . . . . . . . Hacks Repelled . | . . . . . . . Allies | -11 -10 -9 -8 -8 -8 -8 -------- Run | Jun Mat Mat Mat Gar Mat Gar Total Allies 10 | . . . . 7 1 2 Largest Group 6 | . . . . 6 1 2 Highest-Rated Group 117 | . . . . 117 15 49 Highest-Rated Ally 34 | . . . . 31 15 34 Total Orders . | . . . . . . . Ally Attacks 56 | . . . . 49 . 7 Total Damage 1110 | . . . . 759 . 351 Kills 10 | . . . . 6 . 4 Allies Corrupted . | . . . . . . . Allies Melted . | . . . . . . . Intel | -11 -10 -9 -8 -8 -8 -8 ------- Run | Jun Mat Mat Mat Gar Mat Gar Robot Analysis Total . | . . . . . . . Derelict Logs Recovered . | . . . . . . . Drone Launches . | . . . . . . . Drone Recoveries . | . . . . . . . Exploration | -11 -10 -9 -8 -8 -8 -8 ------------- Run | Jun Mat Mat Mat Gar Mat Gar Turns Passed 2591 | 78 223 487 398 1003 152 250 Spaces Moved 1498 | 52 129 236 224 607 101 149 Core 41 | 10 . . . . . 31 Treads . | . . . . . . . Legs 1304 | 42 129 236 224 607 66 . Wheels . | . . . . . . . Hover 153 | . . . . . 35 118 Flight . | . . . . . . . Fastest Speed 50 | 50 120 120 120 120 72 72 Average Speed 114 | 110 120 120 120 120 104 81 Slowest Speed 190 | 120 120 120 120 190 120 100 Overloaded Moves . | . . . . . . . Propulsion Burnouts . | . . . . . . . Robots Hopped . | . . . . . . . Cave-ins Triggered . | . . . . . . . Exploration Rate (%) 29 | 5 32 26 24 71 24 25 Regions Visited 6 Branch Regions . Pre-discovered Areas . | . . . . . . . Known Exits Taken 2 | . . . 1 . 1 . Unknown Exits Taken 3 | 1 1 1 . . . . Scrap Searched . | . . . . . . . Spaces Dug . | . . . . . . . Terrain Destroyed 35 | . . . . 35 . . Melee . | . . . . . . . Projectile . | . . . . . . . AOE 35 | . . . . 35 . . Terrain Rammed . | . . . . . . . Walls Destroyed . | . . . . . . . Machines Disabled . | . . . . . . . Actions | -11 -10 -9 -8 -8 -8 -8 --------- Run | Jun Mat Mat Mat Gar Mat Gar Total 2108 | 65 167 342 304 819 147 264 Wait 247 | . 18 12 10 73 33 101 Move 1494 | 51 128 235 224 606 101 149 Hop . | . . . . . . . Pick Up 39 | 3 1 9 8 15 1 2 Fast Attach 29 | 7 1 4 5 8 4 . Attach 16 | . . 1 1 12 . 2 Detach 4 | . . 1 1 2 . . Swap 22 | . . 9 3 9 1 . Drop 44 | . . 15 12 13 4 . Fire 97 | 4 16 55 7 15 . . Melee 107 | . . . 33 61 3 10 Ram . | . . . . . . . Kick 4 | . 3 1 . . . . Crush . | . . . . . . . Escape Stasis . | . . . . . . . Rewire 5 | . . . . 5 . . Trap . | . . . . . . . Miscellaneous . | . . . . . . . Route ------- -11/Junkyard -10/Materials -9/Materials -8/Materials -8/Garrison (discovered 2 exits: *Mat x2) -8/Materials -8/Garrison History --------- Turn | Location | Event 8 | -11/Junkyard | Discovered new exit (range 16) 79 | -11/Junkyard | Entered Materials 271 | -10/Materials | Discovered new exit (range 14) 302 | -10/Materials | Entered another Materials area 302 | -9/Materials | Evolved 2 slots: Propulsion x1, Utility x1 303 | -9/Materials | Build established: Mutant 699 | -9/Materials | Build established: Scavenger-Mutant 768 | -9/Materials | Discovered new exit (range 15) 789 | -9/Materials | Entered another Materials area 789 | -8/Materials | Evolved 2 slots: Utility x2 1116 | -8/Materials | Garrison activated, responded to threat 1187 | -8/Materials | Identified exit to Garrison 1187 | -8/Materials | Entered Garrison 1210 | -8/Garrison | Installed Relay Interface Framework 1260 | -8/Garrison | Triggered checkpoint 1331 | -8/Garrison | Garrison Relay disabled 1392 | -8/Garrison | Triggered checkpoint 1565 | -8/Garrison | Triggered checkpoint 1566 | -8/Garrison | Triggered checkpoint 1652 | -8/Garrison | Garrison Relay disabled 1666 | -8/Garrison | Triggered checkpoint 1792 | -8/Garrison | Discovered new exit (range 15) 1941 | -8/Garrison | Expanded RIF knowledge: Watcher Feeds 1996 | -8/Garrison | Discovered new exit (range 12) 2006 | -8/Garrison | Triggered checkpoint 2020 | -8/Garrison | Core integrity fell below 50% 2064 | -8/Garrison | Lost 7 parts (1p2n2u2w) 2119 | -8/Garrison | Garrison Relay disabled 2190 | -8/Garrison | Entered Materials 2251 | -8/Materials | Build established: Bothacker-Mutant 2342 | -8/Materials | Identified exit to Garrison 2342 | -8/Materials | Entered Garrison 2342 | -8/Garrison | Accompanied by 1 ally 2366 | -8/Garrison | Triggered checkpoint 2369 | -8/Garrison | Core integrity fell below 20% 2398 | -8/Garrison | Garrison Relay disabled 2399 | -8/Garrison | Lost 3 parts (1p2n) 2592 | -8/Garrison | Triggered checkpoint 2592 | -8/Garrison | Destroyed by G-47 Trooper with Particle Gun Last Messages --------------- 02451_ A bubble of electromagnetic force engulfs the area. 02451_ Storage Shell breached. 02456_ Triggered Tesla Bomb Trap. 02456_ A bubble of electromagnetic force engulfs the area. 02456_ Backup Propulsion III destroyed. 02511_ NNF0W/M>1FM=L19/CDVU005SL 4QORT3ZW26 02516_ Sneak attack on Y-45 Defender. 02516_ Backup Propulsion III destroyed. 02519_ Jacked Y-45 Defender... >>streamctrl_high Hijacking control node. 02532_ Connecting with Door Terminal... 02532_ ALERT: Suspicious activity at Terminal G002. Transmitting hostile system tracking data. 02541_ System corrupted: Matter fused (-10). 02552_ S-10 Pest destroyed. 02564_ Acquired 6 matter. 02569_ System corrupted: Matter fused (-7). 02588_ The unstable cave ceiling collapses. 02592_ Beams of light sweep through the air. An alarm sounds. Map ----- +----------------------------------------------------+ | ?????????????# #???????????????????????????????? | | ?????????????# #???????????????????????????????? | | ?????????????# *#???????????????????????????????? | | ?????????????# %#???????????????????????????????? | | ?????????????# !#???????????????????????????????? | | ?????????????# #???????????????????????????????? | | ?????????????# #???????????????????????????????? | | ?????????????# ###?????????????????????????????? | | ?????????????# #?????????????????????????????? | | ?????????##### #?????????????????????????????? | | ??????#### # #?????????????????????????????? | | ####### # # ########???????????????????????? | | ?????????????????????? | | # ?????????????????????? | | # ! ##### ## #??# #??????????????????????????? | | "" ""#??# ## #??# #??????????????????????????? | | ######??## ### #??# #??????????????????????????? | | ?????????# #?# #??# #??????????????????????????? | | ?????????# #?# #??# #??????????????????????????? | | ?????????# #?# #### #??????????????????????????? | | ????##"### ### ## # ########""""## #?????????? | | ????#T " #?????????? | | ????## ###### = d #?????????? | | ?????# ##????# [ #?????????? | | ?????###?????#### ##### ## ##?????????????? | | ????????????????### ##??#@ Y#?????#??????????????? | | ??????????????????###?? ???????????????? | | ??????????????????????#g ??????????? | | ??????????????????????#g "?????????? | | ??????????????????????#g "?????????? | | ??????????????????????### ## ## ??????????? | | ????????????????????????# #? #??? ??????????? | | ????????????????????????# ?? ?????????????? | | ????????????????????????# ?? ????????????? | | ????????????????????????? ?? ???????????? | | ?????????????????????????# ##???"## ????????????? | | ?????????????????????????? #????????????????????? | | ?????????????????????????? #????????????????????? | | ?????????????????????????? #????????????????????? | | ?????????????????????????? #????????????????????? | | ?????????????????????????? ?????????????????????? | | ?????????????????????????????????????????????????? | | ?????????????????????????????????????????????????? | | ?????????????????????????????????????????????????? | | ?????????????????????????????????????????????????? | | ?????????????????????????????????????????????????? | | ?????????????????????????????????????????????????? | | ?????????????????????????????????????????????????? | | ?????????????????????????????????????????????????? | | ?????????????????????????????????????????????????? | +----------------------------------------------------+ Best States ------------- Heat Dissipation 59 Energy Generation 14 Energy Capacity 265 Matter Stores 300 Matter Capacity 300 Sight Range 16 Terrain Scan Range 16 Terrain Scan Density 10 Armor Coverage 150 Evasion (%) 55 Relay Coupler Types 4 Relay Coupler Value 144 Authchip Count 1 Item Schematics ----------------- None Robot Schematics ------------------ None Fabricated ------------ Nothing Alien Tech Used ----------------- None Achievements -------------- None Challenges ------------ None Game ------ Seed SubatomicWeaponDisintegrator Manual? 0 Play Time 00:45:34 Cumulative 92.8 hours Start 2023.03.08 @ 21:13:21 End 2023.03.08 @ 22:09:41 Sessions 1 Manual Loads 0 Difficulty Rogue Special Mode None Game No. 72 Rogue 72 Adventurer 0 Explorer 0 Win Type - Total 1 Types 1/0/0/0/0/0/0/0/0 Lore% 49 Gallery% 63 Achievement% 51 Wizard Run 0 Options --------- ASCII 0 Keyboard 1 Movement Vi Keybinds 0 Fullscreen 2 Font 18/SmallcapsGlow Map View 76x50 Tactical HUD 1 Map Filters NONE Filters NONE Steam 1 RUN: 4750a024-6aef-42e8-81d6-e9027babd706